fUST/lending_fUST_20241213
["ID","MTS","AMOUNT","RATE_DAILY","PERIOD"]
[345186252,1734078636788,-763.88,0.00027671,7]
[345186253,1734078636798,-567.01670715,0.00027671,7]
[345186254,1734078636808,-500.0,0.00027671,7]
[345186255,1734078636817,-500.0,0.00027671,7]
[345186256,1734078636827,-789.22,0.00027671,7]
[345186257,1734078636836,-500.0,0.00027671,7]
[345186258,1734078636846,-500.0,0.00027671,7]
[345186259,1734078636855,-500.0,0.00027671,7]
[345186260,1734078636864,-500.0,0.00027671,7]
[345186261,1734078636874,-910.97,0.00027671,7]
[345186262,1734078636883,-1056.83,0.00027671,7]
[345186263,1734078636893,-500.0,0.00027671,7]
[345186264,1734078636903,-500.0,0.00027671,7]
[345186265,1734078636912,-500.0,0.00027671,7]
[345186266,1734078636921,-500.0,0.00027671,7]
[345186267,1734078636931,-500.0,0.00027671,7]
[345186268,1734078636940,-500.0,0.00027671,7]
[345186269,1734078636950,-500.0,0.00027671,7]
[345186270,1734078636960,-417.96046037,0.00027671,2]
[345186271,1734078636969,-500.0,0.00027671,7]
[345186272,1734078636978,-500.0,0.00027671,7]
[345186273,1734078636988,-500.0,0.00027671,7]
[345186274,1734078636997,-500.0,0.00027671,7]
[345186275,1734078637006,-1158.96,0.00027671,7]
[345186276,1734078637015,-500.0,0.00027671,7]
[345186277,1734078637025,-500.0,0.00027671,7]
[345186278,1734078637035,-189.8918858,0.00027671,7]
[345186279,1734078637044,-500.0,0.00027671,7]
[345186280,1734078637053,-607.31,0.00027671,7]
[345186281,1734078637062,-974.96,0.00027671,7]
[345186282,1734078637071,-954.4,0.00027671,7]
[345186283,1734078637080,-500.0,0.00027671,7]
[345186284,1734078637090,-500.0,0.00027671,7]
[345186285,1734078637099,-500.0,0.00027671,7]
[345186286,1734078637108,-500.0,0.00027671,7]
[345186287,1734078637117,-277.90832288,0.00027671,7]
[345186288,1734078637126,-500.0,0.00027671,7]
[345186289,1734078637136,-500.0,0.00027671,7]
[345186290,1734078637146,-500.0,0.00027671,7]
[345186291,1734078637155,-500.0,0.00027671,7]
[345186292,1734078637166,-500.0,0.00027671,7]
[345186293,1734078637175,-500.0,0.00027671,7]
[345186294,1734078637186,-789.13,0.00027671,7]
[345186295,1734078637196,-500.0,0.00027671,7]
[345186296,1734078637212,-500.0,0.00027671,7]
[345186297,1734078637222,-500.0,0.00027671,7]
[345186298,1734078637232,-500.0,0.00027671,7]
[345186299,1734078637243,-500.0,0.00027671,7]
[345186300,1734078637253,-672.89,0.00027671,7]
[345186301,1734078637269,-500.0,0.00027671,7]
[345186302,1734078637279,-500.0,0.00027671,7]
[345186303,1734078637289,-500.0,0.00027671,7]
[345186304,1734078637300,-500.0,0.00027671,7]
[345186305,1734078637310,-500.0,0.00027671,7]
[345186306,1734078637320,-1041.67,0.00027671,7]
[345186307,1734078637329,-500.0,0.00027671,7]
[345186308,1734078637339,-834.43,0.00027671,7]
[345186309,1734078637350,-601.32,0.00027671,7]
[345186310,1734078637360,-500.0,0.00027671,7]
[345186311,1734078637370,-500.0,0.00027671,7]
[345186312,1734078637380,-173.15139487,0.00027671,7]
[345186313,1734078637391,-500.0,0.00027671,7]
[345186314,1734078637402,-500.0,0.00027671,7]
[345186315,1734078637412,-563.47,0.00027671,7]
[345186316,1734078637422,-686.28,0.00027671,7]
[345186317,1734078637432,-843.84,0.00027671,7]
[345186318,1734078637443,-500.0,0.00027671,7]
[345186319,1734078637458,-605.99,0.00027671,7]
[345186320,1734078637468,-500.0,0.00027671,7]
[345186321,1734078637478,-897.02,0.00027671,7]
[345186322,1734078637488,-1608.600099,0.00027671,7]
[345186323,1734078637498,-1608.600099,0.00027671,7]
[345186324,1734078637508,-500.0,0.00027671,7]
[345186325,1734078637519,-1608.600099,0.00027671,7]
[345186326,1734078637529,-500.0,0.00027671,7]
[345186327,1734078637539,-1608.600099,0.00027671,7]
[345186329,1734078637548,-1001.09,0.00027671,7]
[345186331,1734078637558,-500.0,0.00027671,7]
[345186333,1734078637567,-500.0,0.00027671,7]
[345186334,1734078637577,-500.0,0.00027671,7]
[345186336,1734078637587,-500.0,0.00027671,7]
[345186337,1734078637596,-441.89383698,0.00027671,7]
[345186338,1734078637605,-577.13,0.00027671,7]
[345186339,1734078637614,-500.0,0.00027671,7]
[345186340,1734078637623,-727.34,0.00027671,7]
[345186341,1734078637632,-574.37,0.00027671,7]
[345186342,1734078637642,-500.0,0.00027671,7]
[345186343,1734078637651,-500.0,0.00027671,7]
[345186346,1734078637661,-271.76076056,0.00027671,7]
[345186349,1734078637670,-538.7,0.00027671,7]
[345186351,1734078637679,-500.0,0.00027671,7]
[345186353,1734078637689,-684.45,0.00027671,7]
[345186354,1734078637698,-500.0,0.00027671,7]
[345186355,1734078637712,-527.89,0.00027671,7]
[345186356,1734078637721,-2506.74,0.00027671,7]
[345186357,1734078637730,-1304.53,0.00027671,7]
[345186358,1734078637740,-500.0,0.00027671,7]
[345186359,1734078637750,-500.0,0.00027671,7]
[345186360,1734078637759,-500.0,0.00027671,7]
[345186361,1734078637769,-2040.4,0.00027671,7]
[345186362,1734078637778,-2728.43,0.00027671,7]
[345186365,1734078637788,-622.64,0.00027671,7]
[345186367,1734078637797,-500.0,0.00027671,7]
[345186369,1734078637806,-500.0,0.00027671,7]
[345186371,1734078637815,-500.0,0.00027671,7]
[345186372,1734078637825,-500.0,0.00027671,7]
[345186374,1734078637834,-500.0,0.00027671,7]
[345186376,1734078637844,-5303.81,0.00027671,7]
[345186378,1734078637853,-851.08,0.00027671,7]
[345186380,1734078637863,-1790.72,0.00027671,7]
[345186381,1734078637873,-500.0,0.00027671,7]
[345186383,1734078637882,-500.0,0.00027671,7]
[345186385,1734078637892,-500.0,0.00027671,7]
[345186387,1734078637901,-690.34,0.00027671,7]
[345186389,1734078637911,-500.0,0.00027671,7]
[345186391,1734078637921,-1163.96,0.00027671,7]
[345186393,1734078637930,-500.0,0.00027671,7]
[345186395,1734078637939,-500.0,0.00027671,7]
[345186397,1734078637948,-550.14,0.00027671,7]
[345186399,1734078637961,-545.77,0.00027671,7]
[345186401,1734078637970,-500.0,0.00027671,7]
[345186403,1734078637979,-500.0,0.00027671,7]
[345186405,1734078637989,-827.28,0.00027671,7]
[345186407,1734078637998,-5378.92,0.00027671,7]
[345186410,1734078638007,-859.8,0.00027671,7]
[345186412,1734078638017,-500.0,0.00027671,7]
[345186414,1734078638027,-1085.21,0.00027671,7]
[345186416,1734078638036,-500.0,0.00027671,7]
[345186418,1734078638045,-500.0,0.00027671,7]
[345186420,1734078638055,-500.0,0.00027671,7]
[345186422,1734078638064,-821.59,0.00027671,7]
[345186424,1734078638074,-533.54,0.00027671,7]
[345186426,1734078638084,-500.0,0.00027671,7]
[345186428,1734078638093,-806.41,0.00027671,7]
[345186430,1734078638103,-500.0,0.00027671,7]
[345186432,1734078638112,-1029.12,0.00027671,7]
[345186434,1734078638121,-500.0,0.00027671,7]
[345186436,1734078638131,-500.0,0.00027671,7]
[345186438,1734078638140,-500.0,0.00027671,7]
[345186440,1734078638149,-500.0,0.00027671,7]
[345186442,1734078638158,-500.0,0.00027671,7]
[345186444,1734078638167,-500.0,0.00027671,7]
[345186446,1734078638177,-151.0,0.00027671,7]
[345186448,1734078638186,-151.0,0.00027671,7]
[345186450,1734078638195,-151.0,0.00027671,7]
[345186452,1734078638207,-151.0,0.00027671,7]
[345186454,1734078638217,-500.0,0.00027671,7]
[345186456,1734078638226,-500.0,0.00027671,7]
[345186458,1734078638236,-500.0,0.00027671,7]
[345186460,1734078638246,-500.0,0.00027671,7]
[345186462,1734078638255,-500.0,0.00027671,7]
[345186464,1734078638266,-9507.43,0.00027671,7]
[345186465,1734078638278,-500.0,0.00027671,7]
[345186467,1734078638287,-500.0,0.00027671,7]
[345186469,1734078638296,-790.41,0.00027671,7]
[345186471,1734078638307,-500.0,0.00027671,7]
[345186473,1734078638318,-783.22,0.00027671,7]
[345186475,1734078638327,-500.0,0.00027671,7]
[345186477,1734078638336,-500.0,0.00027671,7]
[345186479,1734078638348,-500.0,0.00027671,7]
[345186481,1734078638357,-682.83,0.00027671,7]
[345186483,1734078638366,-500.0,0.00027671,7]
[345186485,1734078638376,-500.0,0.00027671,7]
[345186488,1734078638385,-668.84,0.00027671,7]
[345186490,1734078638394,-1524.48,0.00027671,7]
[345186492,1734078638403,-500.0,0.00027671,7]
[345186494,1734078638412,-500.0,0.00027671,7]
[345186495,1734078638421,-500.0,0.00027671,7]
[345186497,1734078638431,-500.0,0.00027671,7]
[345186499,1734078638440,-500.0,0.00027671,7]
[345186501,1734078638449,-500.0,0.00027671,7]
[345186503,1734078638464,-500.0,0.00027671,7]
[345186505,1734078638478,-505.82,0.00027671,7]
[345186507,1734078638487,-725.37,0.00027671,7]
[345186509,1734078638496,-787.09,0.00027671,7]
[345186511,1734078638505,-779.13,0.00027671,7]
[345186513,1734078638515,-500.0,0.00027671,7]
[345186515,1734078638524,-7192.57,0.00027671,7]
[345186517,1734078638533,-500.0,0.00027671,7]
[345186519,1734078638542,-500.0,0.00027671,7]
[345186521,1734078638551,-1333.31,0.00027671,7]
[345186523,1734078638561,-500.0,0.00027671,7]
[345186525,1734078638570,-500.0,0.00027671,7]
[345186527,1734078638579,-782.55,0.00027671,7]
[345186529,1734078638589,-1200.95,0.00027671,7]
[345186531,1734078638598,-478.97421008,0.00027671,7]
[345186533,1734078638607,-500.0,0.00027671,7]
[345186535,1734078638616,-500.0,0.00027671,7]
[345186537,1734078638626,-500.0,0.00027671,7]
[345186539,1734078638635,-5537.21,0.00027671,7]
[345186541,1734078638644,-500.0,0.00027671,7]
[345186542,1734078638653,-500.0,0.00027671,7]
[345186544,1734078638662,-2226.79,0.00027671,7]
[345186546,1734078638672,-500.0,0.00027671,7]
[345186548,1734078638681,-500.0,0.00027671,7]
[345186555,1734078638733,-500.0,0.00027671,7]
[345186557,1734078638743,-1517.55,0.00027671,7]
[345186559,1734078638753,-500.0,0.00027671,7]
[345186561,1734078638762,-457.97614432,0.00027671,7]
[345186563,1734078638771,-234.82945179,0.00027671,7]
[345186565,1734078638780,-965.25,0.00027671,7]
[345186567,1734078638789,-500.0,0.00027671,7]
[345186569,1734078638798,-500.0,0.00027671,7]
[345186571,1734078638807,-538.70033993,0.00027671,7]
[345186573,1734078638817,-500.0,0.00027671,7]
[345186575,1734078638826,-1796.64,0.00027671,7]
[345186577,1734078638835,-500.0,0.00027671,7]
[345186579,1734078638845,-1433.46,0.00027671,7]
[345186581,1734078638853,-500.0,0.00027671,7]
[345186583,1734078638863,-500.0,0.00027671,7]
[345186585,1734078638872,-500.0,0.00027671,7]
[345186587,1734078638881,-500.0,0.00027671,7]
[345186589,1734078638892,-680.55,0.00027671,7]
[345186591,1734078638901,-500.0,0.00027671,7]
[345186593,1734078638910,-3308.7,0.00027671,7]
[345186594,1734078638919,-500.0,0.00027671,7]
[345186595,1734078638928,-500.0,0.00027671,7]
[345186596,1734078638937,-547.79,0.00027671,7]
[345186597,1734078638947,-500.0,0.00027671,7]
[345186598,1734078638958,-500.0,0.00027671,7]
[345186599,1734078638968,-500.0,0.00027671,7]
[345186600,1734078638977,-501.40894987,0.00027671,7]
[345186602,1734078638986,-864.2,0.00027671,7]
[345186604,1734078638995,-500.0,0.00027671,7]
[345186606,1734078639004,-996.91,0.00027671,7]
[345186608,1734078639014,-500.0,0.00027671,7]
[345186609,1734078639023,-500.0,0.00027671,7]
[345186611,1734078639033,-500.0,0.00027671,7]
[345186613,1734078639042,-1115.73,0.00027671,7]
[345186615,1734078639051,-500.0,0.00027671,7]
[345186617,1734078639060,-644.68,0.00027671,7]
[345186619,1734078639070,-500.0,0.00027671,7]
[345186621,1734078639079,-500.0,0.00027671,7]
[345186623,1734078639088,-500.0,0.00027671,7]
[345186625,1734078639097,-1725.36,0.00027671,7]
[345186627,1734078639106,-514.19141669,0.00027671,7]
[345186629,1734078639115,-500.0,0.00027671,7]
[345186631,1734078639124,-669.81,0.00027671,7]
[345186633,1734078639134,-804.63,0.00027671,7]
[345186635,1734078639143,-500.0,0.00027673,5]
[345186637,1734078639152,-150.01,0.00027722,2]
[345186639,1734078639161,-300.0,0.000278,13]
[345186641,1734078639170,-413.17594803,0.00027845,2]
[345186643,1734078639180,-617.0,0.000279,2]
[345186645,1734078639189,-293.27858956,0.00027945,2]
[345186647,1734078639199,-27381.24947834,0.00027945,2]
[345186649,1734078639209,-384.12739448,0.00027945,7]
[345186651,1734078639219,-500.0,0.00027945,7]
[345186654,1734078639228,-500.0,0.00027945,7]
[345186656,1734078639237,-151.0,0.00027945,7]
[345186658,1734078639247,-151.0,0.00027945,7]
[345186660,1734078639256,-151.0,0.00027945,7]
[345186662,1734078639266,-500.0,0.00027945,7]
[345186664,1734078639279,-500.0,0.00027945,7]
[345186666,1734078639288,-500.0,0.00027945,7]
[345186668,1734078639297,-500.0,0.00027945,7]
[345186670,1734078639309,-500.0,0.00027945,7]
[345186672,1734078639318,-500.0,0.00027945,7]
[345186674,1734078639327,-500.0,0.00027945,7]
[345186676,1734078639336,-500.0,0.00027945,7]
[345186678,1734078639349,-500.0,0.00027945,7]
[345186680,1734078639358,-783.35,0.00027945,7]
[345186682,1734078639367,-205.23316141,0.00027945,7]
[345186684,1734078639376,-500.0,0.00027945,7]
[345186686,1734078639386,-500.0,0.00027945,7]
[345186688,1734078639395,-500.0,0.00027945,7]
[345186690,1734078639404,-500.0,0.00027945,7]
[345186692,1734078639413,-500.0,0.00027945,7]
[345186694,1734078639422,-596.81935001,0.00027945,7]
[345186696,1734078639432,-507.82,0.00027945,7]
[345186698,1734078639441,-500.0,0.00027945,7]
[345186700,1734078639450,-500.0,0.00027945,7]
[345186702,1734078639462,-500.0,0.00027945,7]
[345186703,1734078639471,-500.0,0.00027945,7]
[345186705,1734078639480,-635.99,0.00027945,7]
[345186707,1734078639489,-500.0,0.00027945,7]
[345186709,1734078639498,-500.0,0.00027945,7]
[345186711,1734078639507,-500.0,0.00027945,7]
[345186713,1734078639516,-500.0,0.00027945,7]
[345186715,1734078639526,-500.0,0.00027945,7]
[345186717,1734078639535,-500.0,0.00027945,7]
[345186719,1734078639544,-500.0,0.00027945,7]
[345186721,1734078639553,-500.0,0.00027945,7]
[345186723,1734078639563,-500.0,0.00027945,7]
[345186725,1734078639573,-500.0,0.00027945,7]
[345186727,1734078639583,-500.0,0.00027945,7]
[345186730,1734078639592,-500.0,0.00027945,7]
[345186733,1734078639602,-1102.96,0.00027945,7]
[345186736,1734078639611,-500.0,0.00027945,7]
[345186738,1734078639620,-500.0,0.00027945,7]
[345186740,1734078639629,-500.0,0.00027945,7]
[345186743,1734078639639,-500.0,0.00027945,7]
[345186746,1734078639648,-500.0,0.00027945,7]
[345186748,1734078639658,-500.0,0.00027945,7]
[345186750,1734078639667,-953.29,0.00027945,7]
[345186752,1734078639677,-500.0,0.00027945,7]
[345186754,1734078639687,-500.0,0.00027945,7]
[345186756,1734078639697,-500.0,0.00027945,7]
[345186758,1734078639709,-500.0,0.00027945,7]
[345186760,1734078639718,-500.0,0.00027945,7]
[345186762,1734078639728,-500.0,0.00027945,2]
[345186763,1734078639737,-500.0,0.00027945,7]
[345186764,1734078639746,-500.0,0.00027945,7]
[345186765,1734078639756,-500.0,0.00027945,7]
[345186766,1734078639765,-632.97,0.00027945,7]
[345186767,1734078639775,-500.0,0.00027945,7]
[345186768,1734078639784,-500.0,0.00027945,7]
[345186769,1734078639794,-461.27412842,0.00027945,7]
[345186770,1734078639804,-791.85,0.00027945,7]
[345186771,1734078639814,-506.98,0.00027945,7]
[345186772,1734078639823,-500.0,0.00027945,7]
[345186773,1734078639832,-500.0,0.00027945,7]
[345186774,1734078639842,-500.0,0.00027945,7]
[345186775,1734078639851,-2029.66,0.00027945,7]
[345186776,1734078639861,-500.0,0.00027945,7]
[345186777,1734078639871,-500.0,0.00027945,7]
[345186778,1734078639881,-500.0,0.00027945,7]
[345186779,1734078639890,-500.0,0.00027945,7]
[345186780,1734078639899,-500.0,0.00027945,7]
[345186781,1734078639908,-500.0,0.00027945,7]
[345186782,1734078639917,-500.0,0.00027945,7]
[345186783,1734078639926,-500.0,0.00027945,7]
[345186784,1734078639936,-500.0,0.00027945,7]
[345186785,1734078639945,-500.0,0.00027945,7]
[345186786,1734078639957,-500.0,0.00027945,7]
[345186787,1734078639966,-652.81,0.00027945,7]
[345186788,1734078639976,-500.0,0.00027945,7]
[345186789,1734078639985,-629.53,0.00027945,7]
[345186790,1734078639995,-500.0,0.00027945,7]
[345186791,1734078640004,-500.0,0.00027945,7]
[345186793,1734078640013,-518.98,0.00027945,7]
[345186795,1734078640023,-572.55,0.00027945,7]
[345186796,1734078640032,-500.0,0.00027945,7]
[345186798,1734078640040,-500.0,0.00027945,7]
[345186800,1734078640050,-763.88,0.00027945,7]
[345186802,1734078640059,-500.0,0.00027945,7]
[345186804,1734078640068,-500.0,0.00027945,7]
[345186806,1734078640077,-789.22,0.00027945,7]
[345186808,1734078640087,-500.0,0.00027945,7]
[345186809,1734078640096,-500.0,0.00027945,7]
[345186810,1734078640105,-500.0,0.00027945,7]
[345186811,1734078640114,-500.0,0.00027945,7]
[345186812,1734078640123,-910.97,0.00027945,7]
[345186813,1734078640133,-1056.83,0.00027945,7]
[345186815,1734078640142,-500.0,0.00027945,7]
[345186817,1734078640151,-500.0,0.00027945,7]
[345186819,1734078640160,-500.0,0.00027945,7]
[345186821,1734078640169,-500.0,0.00027945,7]
[345186823,1734078640178,-500.0,0.00027945,7]
[345186825,1734078640187,-500.0,0.00027945,7]
[345186827,1734078640196,-500.0,0.00027945,7]
[345186829,1734078640207,-500.0,0.00027945,7]
[345186831,1734078640223,-500.0,0.00027945,7]
[345186833,1734078640232,-500.0,0.00027945,7]
[345186835,1734078640241,-500.0,0.00027945,7]
[345186837,1734078640250,-1158.96,0.00027945,7]
[345186839,1734078640259,-500.0,0.00027945,7]
[345186841,1734078640272,-500.0,0.00027945,7]
[345186843,1734078640281,-500.0,0.00027945,7]
[345186845,1734078640290,-607.31,0.00027945,7]
[345186847,1734078640299,-974.96,0.00027945,7]
[345186849,1734078640309,-954.4,0.00027945,7]
[345186851,1734078640318,-500.0,0.00027945,7]
[345186853,1734078640327,-500.0,0.00027945,7]
[345186855,1734078640336,-500.0,0.00027945,7]
[345186857,1734078640346,-500.0,0.00027945,7]
[345186859,1734078640355,-500.0,0.00027945,7]
[345186861,1734078640364,-500.0,0.00027945,7]
[345186863,1734078640373,-500.0,0.00027945,7]
[345186865,1734078640381,-500.0,0.00027945,7]
[345186867,1734078640390,-500.0,0.00027945,7]
[345186869,1734078640399,-500.0,0.00027945,7]
[345186870,1734078640408,-789.13,0.00027945,7]
[345186871,1734078640417,-500.0,0.00027945,7]
[345186872,1734078640425,-500.0,0.00027945,7]
[345186873,1734078640434,-500.0,0.00027945,7]
[345186874,1734078640443,-500.0,0.00027945,7]
[345186875,1734078640452,-500.0,0.00027945,7]
[345186876,1734078640462,-672.89,0.00027945,7]
[345186877,1734078640471,-500.0,0.00027945,7]
[345186878,1734078640480,-500.0,0.00027945,7]
[345186879,1734078640488,-500.0,0.00027945,7]
[345186880,1734078640497,-500.0,0.00027945,7]
[345186881,1734078640506,-500.0,0.00027945,7]
[345186882,1734078640515,-1041.67,0.00027945,7]
[345186883,1734078640524,-500.0,0.00027945,7]
[345186884,1734078640533,-834.43,0.00027945,7]
[345186885,1734078640542,-601.32,0.00027945,7]
[345186887,1734078640550,-500.0,0.00027945,7]
[345186889,1734078640559,-500.0,0.00027945,7]
[345186891,1734078640568,-500.0,0.00027945,7]
[345186893,1734078640577,-500.0,0.00027945,7]
[345186895,1734078640586,-563.47,0.00027945,7]
[345186897,1734078640594,-686.28,0.00027945,7]
[345186899,1734078640603,-843.84,0.00027945,7]
[345186901,1734078640612,-500.0,0.00027945,7]
[345186903,1734078640621,-605.99,0.00027945,7]
[345186905,1734078640630,-500.0,0.00027945,7]
[345186907,1734078640639,-897.02,0.00027945,7]
[345186909,1734078640648,-500.0,0.00027945,7]
[345186911,1734078640657,-500.0,0.00027945,7]
[345186913,1734078640666,-1608.600099,0.00027945,7]
[345186915,1734078640675,-1608.600099,0.00027945,7]
[345186917,1734078640684,-1608.600099,0.00027945,7]
[345186918,1734078640693,-1001.09,0.00027945,7]
[345186920,1734078640703,-500.0,0.00027945,7]
[345186922,1734078640713,-500.0,0.00027945,7]
[345186924,1734078640722,-500.0,0.00027945,7]
[345186926,1734078640731,-500.0,0.00027945,7]
[345186928,1734078640740,-577.13,0.00027945,7]
[345186930,1734078640749,-500.0,0.00027945,7]
[345186932,1734078640758,-727.34,0.00027945,7]
[345186934,1734078640767,-574.37,0.00027945,7]
[345186936,1734078640775,-500.0,0.00027945,7]
[345186938,1734078640784,-500.0,0.00027945,7]
[345186940,1734078640793,-538.7,0.00027945,7]
[345186942,1734078640802,-533.597404,0.00027945,7]
[345186944,1734078640811,-684.45,0.00027945,7]
[345186946,1734078640820,-500.0,0.00027945,7]
[345186948,1734078640829,-527.89,0.00027945,7]
[345186950,1734078640839,-2506.74,0.00027945,7]
[345186952,1734078640848,-1304.53,0.00027945,7]
[345186954,1734078640857,-500.0,0.00027945,7]
[345186956,1734078640866,-500.0,0.00027945,7]
[345186958,1734078640875,-500.0,0.00027945,7]
[345186960,1734078640884,-2040.4,0.00027945,7]
[345186962,1734078640893,-2728.43,0.00027945,7]
[345186964,1734078640902,-622.64,0.00027945,7]
[345186966,1734078640912,-500.0,0.00027945,7]
[345186968,1734078640921,-500.0,0.00027945,7]
[345186970,1734078640930,-500.0,0.00027945,7]
[345186972,1734078640939,-500.0,0.00027945,7]
[345186974,1734078640947,-500.0,0.00027945,7]
[345186976,1734078640957,-5303.81,0.00027945,7]
[345186978,1734078640966,-851.08,0.00027945,7]
[345186980,1734078640975,-1790.72,0.00027945,7]
[345186982,1734078640984,-500.0,0.00027945,7]
[345186984,1734078640993,-500.0,0.00027945,7]
[345186986,1734078641002,-500.0,0.00027945,7]
[345186988,1734078641011,-690.34,0.00027945,7]
[345186990,1734078641021,-500.0,0.00027945,7]
[345186991,1734078641030,-1163.96,0.00027945,7]
[345186993,1734078641039,-500.0,0.00027945,7]
[345186995,1734078641048,-500.0,0.00027945,7]
[345186997,1734078641057,-550.14,0.00027945,7]
[345186998,1734078641067,-545.77,0.00027945,7]
[345186999,1734078641076,-500.0,0.00027945,7]
[345187000,1734078641085,-500.0,0.00027945,7]
[345187001,1734078641094,-827.28,0.00027945,7]
[345187002,1734078641103,-5378.92,0.00027945,7]
[345187003,1734078641112,-859.8,0.00027945,7]
[345187005,1734078641123,-500.0,0.00027945,7]
[345187007,1734078641131,-1085.21,0.00027945,7]
[345187009,1734078641140,-500.0,0.00027945,7]
[345187011,1734078641149,-500.0,0.00027945,7]
[345187013,1734078641158,-500.0,0.00027945,7]
[345187015,1734078641167,-821.59,0.00027945,7]
[345187017,1734078641176,-533.54,0.00027945,7]
[345187019,1734078641185,-500.0,0.00027945,7]
[345187020,1734078641195,-806.41,0.00027945,7]
[345187022,1734078641203,-500.0,0.00027945,7]
[345187024,1734078641214,-1029.12,0.00027945,7]
[345187026,1734078641225,-500.0,0.00027945,7]
[345187028,1734078641234,-500.0,0.00027945,7]
[345187030,1734078641243,-234.65862508,0.00027945,7]
[345187032,1734078641251,-500.0,0.00027945,7]
[345187034,1734078641261,-500.0,0.00027945,7]
[345187036,1734078641272,-500.0,0.00027945,7]
[345187038,1734078641282,-151.0,0.00027945,7]
[345187040,1734078641291,-151.0,0.00027945,7]
[345187041,1734078641300,-151.0,0.00027945,7]
[345187042,1734078641309,-500.0,0.00027945,7]
[345187044,1734078641319,-500.0,0.00027945,7]
[345187046,1734078641328,-500.0,0.00027945,7]
[345187048,1734078641337,-500.0,0.00027945,7]
[345187050,1734078641349,-500.0,0.00027945,7]
[345187052,1734078641358,-9507.43,0.00027945,7]
[345187054,1734078641368,-500.0,0.00027945,7]
[345187056,1734078641377,-500.0,0.00027945,7]
[345187058,1734078641386,-790.41,0.00027945,7]
[345187060,1734078641395,-500.0,0.00027945,7]
[345187062,1734078641404,-783.22,0.00027945,7]
[345187064,1734078641414,-500.0,0.00027945,7]
[345187066,1734078641423,-500.0,0.00027945,7]
[345187068,1734078641433,-500.0,0.00027945,7]
[345187070,1734078641442,-682.83,0.00027945,7]
[345187072,1734078641451,-500.0,0.00027945,7]
[345187074,1734078641462,-500.0,0.00027945,7]
[345187076,1734078641471,-668.84,0.00027945,7]
[345187078,1734078641480,-1524.48,0.00027945,7]
[345187080,1734078641490,-500.0,0.00027945,7]
[345187082,1734078641499,-628.21523506,0.00027945,7]
[345187083,1734078641508,-500.0,0.00027945,7]
[345187084,1734078641517,-500.0,0.00027945,7]
[345187085,1734078641527,-500.0,0.00027945,7]
[345187086,1734078641536,-500.0,0.00027945,7]
[345187087,1734078641545,-500.0,0.00027945,7]
[345187088,1734078641554,-505.82,0.00027945,7]
[345187089,1734078641563,-725.37,0.00027945,7]
[345187090,1734078641573,-787.09,0.00027945,7]